bitfinex-derivatives/quotes_BNBF0:USTF0_20250630
["timestamp","ask_amount","ask_price","bid_price","bid_amount"]
[1751313814004,3.7759625,660.93,659.99,2.45]
[1751313814506,3.7759625,660.95,659.99,2.45]
[1751313815005,3.7759625,660.95,659.4,2.346]
[1751313815305,3.7759625,660.94,659.4,2.346]
[1751313816205,3.7759625,660.89,659.4,2.346]
[1751313818006,3.7759625,660.89,659.4,5.384]
[1751313819407,3.7759625,660.77,659.4,5.384]
[1751313820912,3.7759625,660.76,659.4,5.384]
[1751313821413,3.7759625,660.81,659.4,5.384]
[1751313823410,3.7759625,660.76,659.4,5.384]
[1751313824014,3.7759625,660.75,659.4,5.384]
[1751313824614,3.7759625,660.74,659.4,5.384]
[1751313825013,3.7759625,660.71,659.4,5.384]
[1751313825612,3.7759625,660.7,659.4,5.384]
[1751313826014,3.7759625,660.68,659.4,5.384]
[1751313826711,3.7759625,660.67,659.4,5.384]
[1751313827113,3.7759625,660.68,659.4,5.384]
[1751313827712,3.7759625,660.66,659.4,5.384]
[1751313828115,3.7759625,660.68,659.4,5.384]
[1751313828711,3.7759625,660.72,659.4,5.384]
[1751313829215,3.7759625,660.73,659.4,5.384]
[1751313829716,3.7759625,660.7,659.4,5.384]
[1751313830316,3.7759625,660.72,659.4,5.384]
[1751313830714,3.7759625,660.7,659.4,5.384]
[1751313831414,3.7759625,660.71,659.4,5.384]
[1751313831818,3.7759625,660.53,659.4,5.384]
[1751313832518,3.7759625,660.49,659.4,5.384]
[1751313832818,3.7759625,660.5,659.4,5.384]
[1751313833315,5.2863475,660.77,659.4,5.384]
[1751313833316,3.7759625,660.46,659.4,5.384]
[1751313834419,3.7759625,660.5,659.4,5.384]
[1751313835021,3.7759625,660.57,659.4,5.384]
[1751313835417,3.7759625,660.52,659.4,5.384]
[1751313836024,3.7759625,660.72,659.4,5.384]
[1751313836624,3.7759625,660.66,659.4,5.384]
[1751313837522,3.7759625,660.7,659.4,5.384]
[1751313837726,3.7759625,660.7,659.4,3.038]
[1751313838222,3.7759625,660.71,659.4,3.038]
[1751313838626,3.7759625,660.67,659.4,3.038]
[1751313839622,3.7759625,660.62,659.4,3.038]
[1751313840625,3.7759625,660.57,659.4,3.038]
[1751313841822,3.7759625,660.58,659.4,3.038]
[1751313842325,3.7759625,660.5,659.4,3.038]
[1751313842928,3.7759625,660.44,659.4,3.038]
[1751313843329,3.7759625,660.45,659.4,3.038]
[1751313843824,3.7759625,660.31,659.4,3.038]
[1751313844430,3.7759625,660.24,659.4,3.038]
[1751313844830,3.7759625,660.2,659.4,3.038]
[1751313845532,3.7759625,660.16,659.4,3.038]
[1751313846431,5.2863475,660.48,659.4,3.038]
[1751313846432,3.7759625,660.18,659.4,3.038]
[1751313848134,3.7759625,659.96,659.4,3.038]
[1751313848629,3.7759625,659.97,659.4,3.038]
[1751313849129,3.7759625,660.12,659.05,3.788]
[1751313849629,3.7759625,660.13,659.05,3.788]
[1751313850633,3.7759625,660.14,659.05,3.788]
[1751313851133,3.7759625,660.15,659.05,3.788]
[1751313851828,5.2863475,660.45,659.05,3.788]
[1751313851829,3.7759625,660.17,659.06,2.784]
[1751313852733,3.7759625,660.18,659.06,2.784]
[1751313853333,3.7759625,660.19,659.06,2.784]
[1751313853829,3.7759625,660.15,659.06,2.784]
[1751313854429,3.7759625,660.19,659.06,2.784]
[1751313855434,3.7759625,660.18,659.06,2.784]
[1751313856636,3.7759625,660.17,659.06,2.784]
[1751313856840,3.7759625,660.17,659.07,3.608]
[1751313857536,3.7759625,660.18,659.07,3.608]
[1751313858036,3.7759625,660.16,659.07,3.608]
[1751313859142,3.7759625,660.0,659.07,3.608]
[1751313859742,3.7759625,660.03,659.07,3.608]
[1751313860745,3.7759625,660.02,659.07,3.608]
[1751313861242,3.7759625,660.01,659.07,3.608]
[1751313861846,3.7759625,659.93,659.07,3.608]
[1751313862241,3.7759625,659.91,659.07,3.608]
[1751313865342,3.7759625,659.97,659.07,3.608]
[1751313866443,3.7759625,659.98,659.07,3.608]
[1751313867749,3.7759625,660.04,659.07,3.608]
[1751313868553,3.7759625,660.03,659.07,3.608]
[1751313869554,3.7759625,660.19,659.07,3.608]
[1751313870149,3.7759625,660.67,659.07,3.608]
[1751313870350,0.26367432,661.08,659.08,1.13704322]
[1751313870556,0.26367432,661.08,659.09,1.13704322]
[1751313870850,0.26367432,661.08,659.1,1.13704322]
[1751313871049,0.26367432,661.08,659.11,1.88134218]
[1751313871250,0.26367432,661.08,659.12,1.88134218]
[1751313871449,0.26367432,661.08,659.13,1.13704322]
[1751313871651,0.26367432,661.08,659.14,1.13704322]
[1751313871851,4.03963682,661.08,659.15,1.13704322]
[1751313872054,4.03963682,661.08,659.16,1.13704322]
[1751313872254,4.03963682,661.08,659.17,1.13704322]
[1751313872452,0.26367432,661.08,659.18,1.13704322]
[1751313872650,0.26367432,661.08,659.19,1.13704322]
[1751313872856,0.26367432,661.08,659.2,1.13704322]
[1751313873053,0.26367432,661.08,659.21,1.13704322]
[1751313873252,0.26367432,661.08,659.22,1.13572893]
[1751313873558,0.26367432,661.08,659.07,3.608]
[1751313873857,0.26367432,661.08,659.08,1.87972437]
[1751313874153,0.26367432,661.08,659.09,1.87972437]
[1751313874357,0.26367432,661.08,659.1,1.87972437]
[1751313874558,0.26367432,661.08,659.11,1.13573139]
[1751313874757,0.26367432,661.08,659.12,1.13573139]
[1751313874959,0.26367432,661.08,659.13,1.13573139]
[1751313875159,0.26367432,661.08,659.14,1.13573139]
[1751313875360,0.26367432,661.08,659.15,1.13573139]
[1751313875565,0.26367432,661.08,659.16,1.13573139]
[1751313875855,0.26367432,661.08,659.17,1.13573139]
[1751313876056,0.26367432,661.08,659.18,1.13573139]
[1751313876260,0.26367432,661.08,659.19,1.13573139]
[1751313876461,0.26367432,661.08,659.2,1.13573139]
[1751313876658,0.26367432,661.08,659.21,1.13573139]
[1751313876957,0.26367432,661.08,659.07,3.608]
[1751313877159,3.7759625,660.63,659.08,1.13520283]
[1751313877361,3.7759625,660.63,659.09,1.13520283]
[1751313877557,3.7759625,660.59,659.1,1.13520283]
[1751313877760,3.7759625,660.59,659.11,1.13520283]
[1751313878055,3.7759625,660.59,659.12,1.13520283]
[1751313878261,3.7759625,660.59,659.13,1.13520283]
[1751313878461,3.7759625,660.59,659.14,1.13520283]
[1751313878761,3.7759625,660.6,659.15,1.13520283]
[1751313878960,3.7759625,660.6,659.16,1.13520283]
[1751313879159,3.7759625,660.6,659.07,3.608]
[1751313879359,3.7759625,660.6,659.08,1.13459793]
[1751313879556,3.7759625,660.6,659.09,1.13459793]
[1751313879758,3.7759625,660.61,659.1,1.13459793]
[1751313879958,3.7759625,660.61,659.11,1.13459793]
[1751313880158,3.7759625,660.61,659.12,1.13459793]
[1751313880357,3.7759625,660.61,659.13,1.13459793]
[1751313880562,3.7759625,660.61,659.14,1.13459793]
[1751313880761,0.26367432,661.08,659.07,3.608]
[1751313880762,3.7759625,660.67,659.15,1.13459793]
[1751313880960,3.7759625,660.67,659.16,1.13459793]
[1751313881160,3.7759625,660.67,659.17,1.13459793]
[1751313881359,3.7759625,660.67,659.07,3.608]
[1751313881660,3.7759625,660.67,659.08,1.13429664]
[1751313881860,3.7759625,660.67,659.09,1.13429664]
[1751313882060,3.7759625,660.67,659.1,1.13429664]
[1751313882265,3.7759625,660.67,659.11,1.13429664]
[1751313882561,3.7759625,660.68,659.12,1.13429664]
[1751313882760,3.7759625,660.68,659.13,1.13429664]
[1751313882960,3.7759625,660.68,659.14,1.13429664]
[1751313883161,3.7759625,660.68,659.15,1.13429664]
[1751313883364,3.7759625,660.69,659.16,1.13429664]
[1751313883665,3.7759625,660.69,659.07,3.608]
[1751313883865,3.7759625,660.65,659.08,1.13426071]
[1751313884161,3.7759625,660.65,659.09,1.13426071]
[1751313884463,3.7759625,660.6,659.1,1.13440728]
[1751313884665,3.7759625,660.6,659.07,3.608]
[1751313884965,3.7759625,660.6,659.08,1.13443855]
[1751313885166,3.7759625,660.6,659.07,3.608]
[1751313885362,3.7759625,660.6,659.08,1.13448289]
[1751313885565,3.7759625,660.59,659.07,3.608]
[1751313885763,3.7759625,660.59,659.08,1.1344558]
[1751313885969,3.7759625,660.59,659.07,3.608]
[1751313886162,3.7759625,660.59,659.08,1.13445591]
[1751313886363,3.7759625,660.59,659.07,3.608]
[1751313886567,3.7759625,660.58,659.08,1.13443803]
[1751313886764,3.7759625,660.58,659.06,2.784]
[1751313886969,3.7759625,660.58,659.07,1.13443803]
[1751313887165,3.7759625,660.53,659.08,1.13443803]
[1751313887365,3.7759625,660.53,659.09,1.13443803]
[1751313887565,3.7759625,660.55,659.1,1.13442022]
[1751313887770,3.7759625,660.55,659.06,2.784]
[1751313887972,3.7759625,660.55,659.07,1.13442022]
[1751313888271,3.7759625,660.85,659.08,1.13442022]
[1751313888471,3.7759625,660.85,659.09,1.13442022]
[1751313888670,3.7759625,660.86,659.1,1.13442022]
[1751313888871,3.7759625,660.86,659.06,2.784]
[1751313889068,3.7759625,660.86,659.07,1.13440785]
[1751313889268,3.7759625,660.85,659.08,1.13440785]
[1751313889467,3.7759625,660.85,659.09,1.13440785]
[1751313889671,3.7759625,660.85,659.1,1.13440785]
[1751313889871,3.7759625,660.85,659.08,2.889]
[1751313890171,3.7759625,660.85,659.09,1.13435845]
[1751313890369,3.7759625,660.85,659.1,1.13435845]
[1751313890566,3.7759625,660.85,659.08,2.889]
[1751313890867,3.7759625,660.84,659.09,1.13433914]
[1751313891173,3.7759625,660.82,659.1,1.13433914]
[1751313891374,3.7759625,660.82,659.08,2.889]
[1751313891569,3.7759625,660.82,659.09,1.13432123]
[1751313891772,3.7759625,660.83,659.1,1.13432123]
[1751313892067,3.7759625,660.83,659.08,2.889]
[1751313892268,3.7759625,660.82,659.09,1.13432123]
[1751313892471,3.7759625,660.82,659.1,1.13432123]
[1751313892769,3.7759625,660.83,659.08,2.889]
[1751313893068,3.7759625,660.83,659.09,1.13425552]
[1751313893273,3.7759625,660.84,659.1,1.13425552]
[1751313893474,3.7759625,660.84,659.08,2.889]
[1751313893672,3.7759625,660.84,659.09,1.13419323]
[1751313893872,3.7759625,660.84,659.1,1.13419323]
[1751313894078,3.7759625,660.84,659.08,2.889]
[1751313894372,3.7759625,660.84,659.09,1.13419323]
[1751313894573,3.7759625,660.84,659.1,1.13419323]
[1751313894773,3.7759625,660.84,659.08,2.889]
[1751313894977,3.7759625,660.84,659.09,1.1341343]
[1751313895176,3.7759625,660.84,659.1,1.1341343]
[1751313895377,3.7759625,660.85,659.08,2.889]
[1751313895673,3.7759625,660.85,659.11,2.217]
[1751313896578,3.7759625,660.86,659.11,2.217]
[1751313896978,0.26367432,661.08,659.11,2.217]
[1751313896979,3.7759625,660.96,659.11,2.217]
[1751313897579,3.7759625,660.82,659.11,2.217]
[1751313897980,3.7759625,660.8,659.11,2.217]
[1751313898579,3.7759625,660.81,659.11,2.217]
[1751313900781,3.7759625,660.95,659.11,2.217]
[1751313901180,3.7759625,660.96,659.11,2.217]
[1751313901784,3.7759625,660.94,659.11,2.217]
[1751313902284,3.7759625,660.96,659.11,2.217]
[1751313902779,3.7759625,660.97,659.11,2.217]
[1751313903785,3.7759625,661.06,659.12,1.1332551]
[1751313904085,3.7759625,661.06,659.13,1.1332551]
[1751313904287,4.03963682,661.08,659.14,1.1332551]
[1751313904485,4.03963682,661.08,659.15,1.1332551]
[1751313904683,4.03963682,661.08,659.16,1.1332551]
[1751313904886,4.03963682,661.08,659.17,1.1332551]
[1751313905086,4.03963682,661.08,659.18,1.1332551]
[1751313905285,4.03963682,661.08,659.19,1.1332551]
[1751313905585,4.03963682,661.08,659.2,1.1332551]
[1751313905782,3.7759625,661.04,659.21,1.1332551]
[1751313905985,3.7759625,661.04,659.22,1.1332551]
[1751313906182,3.7759625,661.04,659.23,1.1332551]
[1751313906383,3.7759625,661.04,659.11,2.217]
[1751313906586,3.7759625,661.04,659.12,1.13303173]
[1751313906786,3.7759625,661.04,659.13,1.13303173]
[1751313906994,3.7759625,661.04,659.14,1.13303173]
[1751313907290,3.7759625,661.01,659.15,1.13303173]
[1751313907495,3.7759625,661.01,659.16,1.13303173]
[1751313907694,3.7759625,661.01,659.17,1.13303173]
[1751313907896,3.7759625,661.01,659.18,1.13303173]
[1751313908196,3.7759625,661.01,659.19,1.13303173]
[1751313908396,3.7759625,661.01,659.2,1.13303173]
[1751313908692,3.7759625,661.01,659.11,2.217]
[1751313908895,3.7759625,661.01,659.12,1.13303865]
[1751313909196,3.7759625,661.01,659.13,1.13303865]
[1751313909492,3.7759625,660.98,659.14,1.13303865]
[1751313909691,3.7759625,660.98,659.15,1.13303865]
[1751313909896,3.7759625,660.98,659.16,1.13303865]
[1751313910090,3.7759625,660.98,659.17,1.13303865]
[1751313910290,3.7759625,660.98,659.18,1.13303865]
[1751313910492,3.7759625,660.93,659.19,1.13303865]
[1751313910795,3.7759625,660.93,659.11,2.217]
[1751313910995,3.7759625,660.89,659.12,1.13321912]
[1751313911196,3.7759625,660.89,659.13,1.13321912]
[1751313911392,3.7759625,660.76,659.14,1.13321912]
[1751313911598,3.7759625,660.76,659.15,1.13321912]
[1751313911796,3.7759625,660.76,659.16,1.13321912]
[1751313911992,3.7759625,660.77,659.17,1.13321912]
[1751313912191,3.7759625,660.77,659.16,2.729]
[1751313912392,3.7759625,660.77,659.17,1.13348393]
[1751313912597,3.7759625,660.76,659.16,2.729]
[1751313912893,3.7759625,660.76,659.17,1.13348422]
[1751313913197,3.7759625,660.76,659.16,2.729]
[1751313913397,3.7759625,660.76,659.17,1.13359736]
[1751313913601,3.7759625,660.77,659.16,2.729]
[1751313913797,3.7759625,660.77,659.17,1.13362022]
[1751313913998,3.7759625,660.77,659.16,2.729]
[1751313914196,3.7759625,660.76,659.16,2.729]
[1751313914598,3.7759625,660.75,659.16,2.729]
[1751313915697,3.7759625,660.74,659.16,2.729]
[1751313916203,3.7759625,660.73,659.16,2.729]
[1751313916899,3.7759625,660.72,659.16,2.729]
[1751313917305,3.7759625,660.75,659.17,1.1340238]
[1751313917607,3.7759625,660.75,659.18,1.1340238]
[1751313917805,3.7759625,660.74,659.16,2.729]
[1751313918006,3.7759625,660.74,659.17,1.13415021]
[1751313918206,3.7759625,660.74,659.18,1.13415021]
[1751313918404,3.7759625,660.72,659.16,2.729]
[1751313918706,3.7759625,660.72,659.17,1.13435452]
[1751313918908,3.7759625,660.72,659.18,1.13435452]
[1751313919108,3.7759625,660.72,659.16,2.729]
[1751313919308,3.7759625,660.7,659.17,1.13439453]
[1751313919608,3.7759625,660.7,659.16,2.729]
[1751313919906,3.7759625,660.7,659.17,1.13457981]
[1751313920103,3.7759625,660.7,659.16,2.729]
[1751313920406,3.7759625,660.68,659.17,1.13482809]
[1751313920703,3.7759625,660.68,659.16,2.729]
[1751313920902,3.7759625,660.67,659.17,1.13482809]
[1751313921103,3.7759625,660.67,659.16,2.729]
[1751313921620,3.7759625,660.47,659.16,2.729]
[1751313922109,3.7759625,660.46,659.16,2.729]
[1751313922510,3.7759625,660.44,659.16,2.729]
[1751313923610,3.7759625,660.34,659.16,2.729]
[1751313924714,3.7759625,660.3,659.16,2.729]
[1751313925615,3.7759625,660.26,659.16,2.729]
[1751313926715,3.7759625,660.22,659.16,2.729]
[1751313927217,3.7759625,660.18,659.16,2.729]
[1751313928321,3.7759625,660.16,659.16,2.729]
[1751313929218,3.7759625,660.16,659.17,1.13961455]
[1751313929419,3.7759625,660.13,659.16,2.729]
[1751313929722,3.7759625,660.13,659.17,1.13961455]
[1751313929924,3.7759625,660.13,659.16,2.729]
[1751313930119,3.7759625,660.13,659.17,1.13961455]
[1751313930318,3.7759625,660.12,659.18,1.13961455]
[1751313930617,3.7759625,660.12,659.16,2.729]
[1751313930820,3.7759625,660.12,659.17,1.13989744]
[1751313931021,3.7759625,660.12,659.18,1.13989744]
[1751313931217,3.7759625,660.12,659.16,2.729]
[1751313931419,3.7759625,660.12,659.17,1.13989355]
[1751313931718,3.7759625,660.12,659.16,2.729]
[1751313931921,3.7759625,660.07,659.16,2.729]
[1751313937126,3.7759625,660.07,659.11,2.217]
[1751313937320,3.7759625,660.07,659.12,1.14050737]
[1751313937524,3.7759625,660.07,659.13,1.14050737]
[1751313937824,3.7759625,660.08,659.14,1.14050737]
[1751313938022,3.7759625,660.08,659.11,2.217]
[1751313938226,3.7759625,660.23,659.12,1.14085429]
[1751313938422,3.7759625,660.23,659.13,1.14085429]
[1751313938622,3.7759625,660.23,659.14,1.14085429]
[1751313938826,3.7759625,660.24,659.11,2.217]
[1751313939020,3.7759625,660.24,659.12,1.14090116]
[1751313939223,3.7759625,660.24,659.13,1.14090116]
[1751313939423,3.7759625,660.24,659.14,1.14090116]
[1751313939725,3.7759625,660.24,659.11,2.217]
[1751313939925,3.7759625,660.24,659.12,1.14091552]
[1751313940121,3.7759625,660.24,659.13,1.14091552]
[1751313940325,5.2863475,660.5,659.14,1.14091552]
[1751313940326,3.7759625,660.25,659.14,1.14091552]
[1751313940526,3.7759625,660.25,659.12,2.954]
[1751313940724,3.7759625,660.25,659.13,1.14093037]
[1751313940927,3.7759625,660.25,659.14,1.14093037]
[1751313941223,3.7759625,660.25,659.15,1.14090699]
[1751313941427,3.7759625,660.25,659.12,2.954]
[1751313941626,3.7759625,660.25,659.13,1.14092343]
[1751313941839,3.7759625,660.25,659.14,1.14092343]
[1751313942126,3.7759625,660.25,659.15,1.14092343]
[1751313942323,3.7759625,660.25,659.12,2.954]
[1751313942526,3.7759625,660.25,659.13,1.1409498]
[1751313942824,3.7759625,660.25,659.14,1.1409498]
[1751313943023,3.7759625,660.25,659.15,1.1409498]
[1751313943226,3.7759625,660.25,659.12,2.954]
[1751313943427,3.7759625,660.25,659.13,1.14096782]
[1751313943728,3.7759625,660.25,659.14,1.14096782]
[1751313943928,3.7759625,660.25,659.15,1.14096782]
[1751313944131,3.7759625,660.3,659.12,2.954]
[1751313944331,3.7759625,660.3,659.13,1.14097791]
[1751313944626,3.7759625,660.3,659.14,1.14097791]
[1751313944828,3.7759625,660.3,659.15,1.14097791]
[1751313945032,3.7759625,660.3,659.12,2.954]
[1751313945231,3.7759625,660.3,659.13,1.14097708]
[1751313945430,3.7759625,660.3,659.14,1.14097708]
[1751313945629,3.7759625,660.3,659.15,1.14097708]
[1751313945934,3.7759625,660.3,659.12,2.954]
[1751313946129,3.7759625,660.29,659.13,1.14099435]
[1751313946333,3.7759625,660.29,659.14,1.14099435]
[1751313946532,3.7759625,660.29,659.15,1.14099435]
[1751313946830,3.7759625,660.29,659.12,2.954]
[1751313947030,3.7759625,660.29,659.13,1.1410026]
[1751313947232,3.7759625,660.28,659.14,1.1410026]
[1751313947430,3.7759625,660.28,659.15,1.1410026]
[1751313947629,3.7759625,660.28,659.16,1.1410026]
[1751313947831,3.7759625,660.23,659.17,1.1410026]
[1751313948033,3.7759625,660.23,659.18,1.1410026]
[1751313948233,3.7759625,660.23,659.19,1.1410026]
[1751313948433,3.7759625,660.23,659.19,2.879]
[1751313949329,3.7759625,660.22,659.19,2.879]
[1751313950530,3.7759625,660.2,659.19,2.879]
[1751313950734,3.7759625,660.2,659.2,1.1411104]
[1751313950934,3.7759625,660.41,659.19,2.879]
[1751313951132,3.7759625,660.41,659.2,1.14110881]
[1751313951334,3.7759625,660.41,659.19,2.879]
[1751313951535,3.7759625,660.41,659.2,1.14113147]
[1751313951735,3.7759625,660.41,659.21,1.14095719]
[1751313951933,3.7759625,660.42,659.22,1.14095719]
[1751313952132,3.7759625,660.42,659.23,1.14095719]
[1751313952332,3.7759625,660.44,659.24,1.14095719]
[1751313952534,3.7759625,660.44,659.19,2.879]
[1751313952732,3.7759625,660.44,659.2,1.14077297]
[1751313952932,3.7759625,660.47,659.21,1.14077297]
[1751313953132,3.7759625,660.47,659.22,1.14077297]
[1751313953337,3.7759625,660.47,659.23,1.14077297]
[1751313953636,3.7759625,660.47,659.24,1.14077297]
[1751313953936,3.7759625,660.44,659.25,1.14077297]
[1751313954136,3.7759625,660.44,659.26,1.14077297]
[1751313954337,3.7759625,660.44,659.27,1.14077297]
[1751313954638,3.7759625,660.43,659.19,2.879]
[1751313954934,3.7759625,660.43,659.2,1.14075856]
[1751313955138,3.7759625,660.43,659.21,1.14075856]
[1751313955337,3.7759625,660.43,659.22,1.14075856]
[1751313955533,3.7759625,660.43,659.23,1.14075856]
[1751313955742,3.7759625,660.43,659.24,1.14075856]
[1751313955941,3.7759625,660.43,659.25,1.14075856]
[1751313956144,3.7759625,660.43,659.26,1.14075856]
[1751313956339,3.7759625,660.43,659.27,1.14075856]
[1751313956540,3.7759625,660.43,659.19,2.879]
[1751313956839,3.7759625,660.44,659.2,1.14075838]
[1751313957040,3.7759625,660.44,659.21,1.14075838]
[1751313957244,3.7759625,660.44,659.22,1.14075838]
[1751313957439,3.7759625,660.44,659.23,1.14075838]
[1751313957644,3.7759625,660.42,659.24,1.14075838]
[1751313957844,3.7759625,660.42,659.25,1.14075838]
[1751313958143,3.7759625,660.45,659.26,1.14075838]
[1751313958340,3.7759625,660.45,659.19,2.879]
[1751313958341,3.7759625,660.45,659.27,1.14075838]
[1751313958544,3.7759625,660.45,659.28,1.1409644]
[1751313958744,3.7759625,660.35,659.29,1.1409644]
[1751313958944,3.7759625,660.35,659.3,1.14071481]
[1751313959145,3.7759625,660.35,659.31,1.14071481]
[1751313959345,3.7759625,660.4,659.32,1.14071481]
[1751313959644,3.7759625,660.4,659.33,1.14071481]
[1751313959841,3.7759625,660.41,659.34,1.14071481]
[1751313960041,3.7759625,660.41,659.35,1.14071481]
[1751313960245,3.7759625,660.41,659.36,1.14071481]
[1751313960441,3.7759625,660.41,659.19,2.879]
[1751313960746,3.7759625,660.41,659.2,1.14075606]
[1751313960947,3.7759625,660.41,659.21,1.14075606]
[1751313961147,3.7759625,660.41,659.22,1.14075606]
[1751313961442,3.7759625,660.42,659.23,1.14075606]
[1751313961641,3.7759625,660.42,659.24,1.14075606]
[1751313961842,3.7759625,660.4,659.25,1.14075606]
[1751313962041,3.7759625,660.4,659.26,1.14075606]
[1751313962242,3.7759625,660.4,659.27,1.14075606]
[1751313962546,3.7759625,660.4,659.28,1.14075606]
[1751313962843,3.7759625,660.4,659.29,1.14075606]
[1751313963046,3.7759625,660.4,659.3,1.14075606]
[1751313963249,3.7759625,660.4,659.31,1.14075606]
[1751313963547,3.7759625,660.41,659.32,1.14075606]
[1751313963748,3.7759625,660.41,659.33,1.14075606]
[1751313963948,3.7759625,660.38,659.19,2.879]
[1751313964249,3.7759625,660.38,659.2,1.14086436]
[1751313964546,3.7759625,660.39,659.21,1.14086436]
[1751313964745,3.7759625,660.39,659.22,1.14086436]
[1751313964945,3.7759625,660.4,659.23,1.14086436]
[1751313965142,3.7759625,660.4,659.24,1.14086436]
[1751313965350,3.7759625,660.4,659.25,1.14086436]
[1751313965644,3.7759625,660.41,659.26,1.14086436]
[1751313965841,3.7759625,660.41,659.27,1.14086436]
[1751313966041,3.7759625,660.41,659.19,2.879]
[1751313966042,3.7759625,660.41,659.28,1.14086436]
[1751313966247,3.7759625,660.41,659.19,2.879]
[1751313966248,3.7759625,660.41,659.29,1.14086436]
[1751313966445,3.7759625,660.41,659.3,1.14086436]
[1751313966647,3.7759625,660.41,659.31,1.14086436]
[1751313966845,3.7759625,660.41,659.32,1.14086436]
[1751313967148,3.7759625,660.41,659.19,2.879]
[1751313967347,3.7759625,660.41,659.2,1.14057212]
[1751313967546,3.7759625,660.41,659.21,1.14057212]
[1751313967847,3.7759625,660.46,659.22,1.14057212]
[1751313968046,3.7759625,660.46,659.23,1.14057212]
[1751313968250,3.7759625,660.36,659.24,1.14057212]
[1751313968450,3.7759625,660.36,659.25,1.14057212]
[1751313968651,3.7759625,660.35,659.26,1.14057212]
[1751313968850,3.7759625,660.35,659.27,1.14057212]
[1751313969053,3.7759625,660.35,659.19,2.879]
[1751313969251,3.7759625,660.35,659.2,1.14078249]
[1751313969451,3.7759625,660.35,659.21,1.14078249]
[1751313969647,3.7759625,660.35,659.22,1.14078249]
[1751313969847,3.7759625,660.35,659.23,1.14078249]
[1751313970052,3.7759625,660.35,659.21,2.416]
[1751313970250,3.7759625,660.26,659.22,1.1410509]
[1751313970453,3.7759625,660.26,659.21,2.416]
[1751313970954,3.7759625,660.22,659.21,2.416]
[1751313971852,3.7759625,660.25,659.21,2.416]
[1751313972255,3.7759625,660.12,659.21,2.416]
[1751313973356,3.7759625,660.13,659.21,2.416]
[1751313977657,3.7759625,660.15,659.21,2.416]
[1751313978161,3.7759625,660.18,659.21,2.416]
[1751313980363,3.7759625,660.16,659.21,2.416]
[1751313980763,3.7759625,660.17,659.21,2.416]
[1751313981864,3.7759625,660.13,659.21,2.416]
[1751313982364,3.7759625,660.12,659.21,2.416]
[1751313987064,3.7759625,660.09,659.21,2.416]
[1751313989068,3.7759625,660.14,659.21,2.416]
[1751313991166,3.7759625,660.15,659.21,2.416]
[1751313991667,3.7759625,660.14,659.21,2.416]
[1751313992171,3.7759625,660.15,659.21,2.416]
[1751313992672,3.7759625,660.14,659.21,2.416]
[1751313994573,0.26390827,659.91,659.21,2.416]
[1751313996470,0.26390827,659.91,659.19,2.879]
[1751313996771,0.26390827,659.91,659.2,1.14130272]
[1751313997074,0.26390827,659.91,659.21,1.14129795]
[1751313997376,0.26390827,659.91,659.19,2.879]
[1751313997570,0.26390827,659.91,659.2,1.14129727]
[1751313997774,0.26390827,659.91,659.21,1.14129727]
[1751313998073,0.26390827,659.91,659.19,2.879]
[1751313998276,0.26390827,659.91,659.2,1.14145309]
[1751313998575,0.26390827,659.91,659.21,1.14145309]
[1751313998772,0.26390827,659.91,659.19,2.879]
[1751313998975,0.26390827,659.91,659.2,1.14147131]
[1751313999274,0.26390827,659.91,659.21,1.14147131]
[1751313999475,0.26390827,659.91,659.19,2.879]
[1751313999677,0.26390827,659.91,659.2,1.14167418]
[1751313999876,0.26390827,659.91,659.21,1.14167418]
[1751314000078,0.26390827,659.91,659.19,2.879]
[1751314000377,0.26390827,659.91,659.2,1.14177712]
[1751314000575,0.26390827,659.91,659.21,1.14177712]
[1751314000778,0.26390827,659.91,659.19,2.879]
[1751314000978,0.26390827,659.91,659.2,1.14175402]
[1751314001181,0.26390827,659.91,659.19,2.879]
[1751314001479,0.26390827,659.91,659.15,3.118]
[1751314001678,0.26390827,659.91,659.16,1.14182643]
[1751314001978,0.26390827,659.91,659.17,1.14182643]
[1751314002278,0.26390827,659.91,659.18,1.14182643]
[1751314002578,0.26390827,659.91,659.19,1.14182643]
[1751314002775,0.26390827,659.91,659.2,1.14182643]
[1751314002975,0.26390827,659.91,659.15,3.118]
[1751314003176,0.26390827,659.91,659.16,1.14178148]
[1751314003378,0.26390827,659.91,659.17,1.14178148]
[1751314003675,0.26390827,659.91,659.18,1.14178148]
[1751314003878,0.26390827,659.91,659.19,1.14178148]
[1751314004079,0.26390827,659.91,659.2,1.14178148]
[1751314004280,0.26390827,659.91,659.15,3.118]